fUST/lending_fUST_20260118
["ID","MTS","AMOUNT","RATE_DAILY","PERIOD"]
[402486408,1768685447247,-500.0,0.00016438,3]
[402486409,1768685447257,-500.0,0.00016438,3]
[402486410,1768685447270,-225.94247433,0.00016438,3]
[402486411,1768685447280,-775.8,0.00016438,3]
[402486412,1768685447290,-544.53494198,0.00016438,3]
[402486413,1768685447300,-505.85783189,0.00016438,3]
[402486414,1768685447311,-500.0,0.00016438,3]
[402486415,1768685447321,-500.0,0.00016438,3]
[402486416,1768685447330,-500.0,0.00016438,3]
[402486417,1768685447341,-500.0,0.00016438,3]
[402486418,1768685447351,-529.33,0.00016438,3]
[402486419,1768685447361,-500.0,0.00016438,3]
[402486420,1768685447371,-500.0,0.00016438,3]
[402486421,1768685447380,-872.79,0.00016438,3]
[402486422,1768685447389,-500.0,0.00016438,3]
[402486423,1768685447399,-500.0,0.00016438,3]
[402486424,1768685447408,-500.0,0.00016438,3]
[402486425,1768685447418,-500.0,0.00016438,3]
[402486426,1768685447428,-500.0,0.00016438,3]
[402486427,1768685447437,-500.0,0.00016438,3]
[402486428,1768685447447,-500.0,0.00016438,3]
[402486429,1768685447457,-1168.97,0.00016438,3]
[402486430,1768685447466,-467.49360859,0.00016438,3]
[402486431,1768685447476,-500.0,0.00016438,3]
[402486432,1768685447485,-1329.82,0.00016438,3]
[402486433,1768685447495,-979.4,0.00016438,3]
[402486434,1768685447504,-504.02216576,0.00016438,3]
[402486435,1768685447514,-500.0,0.00016438,3]
[402486436,1768685447523,-500.0,0.00016438,3]
[402486437,1768685447533,-578.9,0.00016438,3]
[402486438,1768685447543,-614.79,0.00016438,3]
[402486439,1768685447553,-500.0,0.00016438,3]
[402486440,1768685447563,-500.0,0.00016438,3]
[402486441,1768685447573,-500.0,0.00016438,3]
[402486442,1768685447583,-500.0,0.00016438,3]
[402486443,1768685447593,-658.84,0.00016438,3]
[402486444,1768685447603,-500.0,0.00016438,3]
[402486445,1768685447614,-325.21716664,0.00016438,3]
[402486446,1768685447624,-500.0,0.00016438,3]
[402486447,1768685447634,-500.0,0.00016438,3]
[402486448,1768685447644,-552.69,0.00016438,3]
[402486449,1768685447654,-832.62,0.00016438,3]
[402486450,1768685447665,-500.0,0.00016438,3]
[402486451,1768685447675,-500.0,0.00016438,3]
[402486452,1768685447684,-500.0,0.00016438,3]
[402486453,1768685447694,-151.0,0.00016438,2]
[402486454,1768685447704,-500.0,0.00016438,3]
[402486455,1768685447714,-1244.06,0.00016438,3]
[402486456,1768685447724,-500.0,0.00016438,3]
[402486457,1768685447734,-1323.23,0.00016438,3]
[402486458,1768685447743,-2880.81,0.00016438,3]
[402486459,1768685447753,-500.0,0.00016438,3]
[402486460,1768685447763,-827.76,0.00016438,3]
[402486461,1768685447774,-6357.57,0.00016438,3]
[402486462,1768685447783,-500.0,0.00016438,3]
[402486463,1768685447794,-1380.77,0.00016438,3]
[402486464,1768685447804,-500.0,0.00016438,3]
[402486465,1768685447814,-500.0,0.00016438,3]
[402486466,1768685447825,-500.0,0.00016438,3]
[402486467,1768685447834,-500.0,0.00016438,3]
[402486468,1768685447844,-500.0,0.00016438,3]
[402486469,1768685447854,-500.0,0.00016438,3]
[402486470,1768685447863,-500.0,0.00016438,3]
[402486471,1768685447874,-572.36,0.00016438,3]
[402486472,1768685447884,-566.78,0.00016438,3]
[402486473,1768685447893,-500.0,0.00016438,3]
[402486474,1768685447903,-715.05,0.00016438,3]
[402486475,1768685447912,-500.0,0.00016438,3]
[402486476,1768685447921,-500.0,0.00016438,3]
[402486477,1768685447931,-500.0,0.00016438,3]
[402486478,1768685447940,-538.58,0.00016438,3]
[402486479,1768685447949,-994.14,0.00016438,3]
[402486480,1768685447958,-799.77,0.00016438,3]
[402486481,1768685447968,-500.0,0.00016438,3]
[402486482,1768685447977,-500.0,0.00016438,3]
[402486483,1768685447986,-500.0,0.00016438,3]
[402486484,1768685447995,-500.0,0.00016438,3]
[402486485,1768685448004,-500.0,0.00016438,3]
[402486486,1768685448014,-1087.65,0.00016438,3]
[402486487,1768685448023,-500.0,0.00016438,3]
[402486488,1768685448033,-500.0,0.00016438,3]
[402486489,1768685448042,-647.35,0.00016438,3]
[402486490,1768685448052,-500.0,0.00016438,3]
[402486491,1768685448062,-500.0,0.00016438,3]
[402486492,1768685448071,-501.8453365,0.00016438,3]
[402486493,1768685448080,-598.89865208,0.00016438,3]
[402486494,1768685448090,-362.08497691,0.00016438,3]
[402486495,1768685448099,-500.0,0.00016438,3]
[402486496,1768685448108,-500.0,0.00016438,3]
[402486497,1768685448118,-860.39,0.00016438,3]
[402486498,1768685448186,-1033.59,0.00016438,3]
[402486499,1768685448196,-469.18172049,0.00016438,3]
[402486500,1768685448205,-500.0,0.00016438,3]
[402486501,1768685448215,-500.0,0.00016438,3]
[402486502,1768685448225,-500.0,0.00016438,3]
[402486503,1768685448234,-500.0,0.00016438,3]
[402486504,1768685448243,-936.78,0.00016438,3]
[402486505,1768685448252,-500.0,0.00016438,3]
[402486506,1768685448263,-500.0,0.00016438,3]
[402486507,1768685448276,-2390.17,0.00016438,3]
[402486508,1768685448285,-479.17924292,0.00016438,2]
[402486509,1768685448295,-1076.8,0.00016438,3]
[402486510,1768685448304,-500.0,0.00016438,3]
[402486511,1768685448315,-500.0,0.00016438,3]
[402486512,1768685448324,-500.0,0.00016438,2]
[402486513,1768685448334,-500.0,0.00016438,3]
[402486514,1768685448343,-546.4,0.00016438,3]
[402486515,1768685448352,-500.0,0.00016438,3]
[402486516,1768685448361,-500.0,0.00016438,3]
[402486517,1768685448370,-927.12,0.00016438,3]
[402486518,1768685448379,-500.0,0.00016438,3]
[402486519,1768685448388,-1065.91,0.00016438,3]
[402486520,1768685448398,-309.96810054,0.00016438,3]
[402486521,1768685448407,-783.29,0.00016438,3]
[402486522,1768685448416,-11772.63,0.00016438,3]
[402486523,1768685448426,-998.07,0.00016438,3]
[402486524,1768685448435,-200.53732028,0.00016438,3]
[402486525,1768685448444,-501.47481174,0.00016438,3]
[402486526,1768685448453,-500.0,0.00016438,3]
[402486527,1768685448463,-596.66,0.00016438,3]
[402486528,1768685448472,-500.0,0.00016438,3]
[402486529,1768685448482,-500.0,0.00016438,3]
[402486530,1768685448491,-500.0,0.00016438,3]
[402486531,1768685448501,-509.99937096,0.00016438,3]
[402486532,1768685448511,-500.0,0.00016438,3]
[402486533,1768685448520,-500.0,0.00016438,3]
[402486534,1768685448530,-724.52,0.00016438,3]
[402486535,1768685448539,-501.58858315,0.00016438,3]
[402486536,1768685448549,-500.0,0.00016438,3]
[402486537,1768685448558,-500.0,0.00016438,3]
[402486538,1768685448568,-500.0,0.00016438,3]
[402486539,1768685448578,-500.0,0.00016438,3]
[402486540,1768685448587,-1175.75,0.00016438,3]
[402486541,1768685448596,-500.0,0.00016438,3]
[402486542,1768685448605,-928.59,0.00016438,3]
[402486543,1768685448615,-500.0,0.00016438,3]
[402486544,1768685448624,-500.0,0.00016438,3]
[402486545,1768685448634,-500.0,0.00016438,3]
[402486546,1768685448643,-332.91217118,0.00016438,3]
[402486547,1768685448654,-1256.22,0.00016438,3]
[402486548,1768685448664,-500.0,0.00016438,3]
[402486549,1768685448676,-1054.8,0.00016438,3]
[402486550,1768685448685,-2392.5,0.00016438,2]
[402486551,1768685448694,-500.0,0.00016438,3]
[402486552,1768685448703,-2392.5,0.00016438,2]
[402486553,1768685448713,-2392.5,0.00016438,2]
[402486554,1768685448722,-281.28402588,0.00016438,3]
[402486555,1768685448734,-2392.5,0.00016438,2]
[402486556,1768685448744,-2392.5,0.00016438,2]
[402486557,1768685448755,-500.0,0.00016438,3]
[402486558,1768685448765,-2392.5,0.00016438,2]
[402486559,1768685448774,-500.0,0.00016438,3]
[402486560,1768685448784,-726.59,0.00016438,3]
[402486561,1768685448794,-2392.5,0.00016438,2]
[402486562,1768685448803,-500.0,0.00016438,3]
[402486563,1768685448812,-500.0,0.00016438,3]
[402486564,1768685448822,-2392.5,0.00016438,2]
[402486565,1768685448834,-1320.61,0.00016438,3]
[402486566,1768685448843,-2392.5,0.00016438,2]
[402486567,1768685448853,-2392.5,0.00016438,2]
[402486568,1768685448863,-711.48,0.00016438,3]
[402486569,1768685448874,-2392.5,0.00016438,2]
[402486570,1768685448883,-500.0,0.00016438,3]
[402486571,1768685448892,-2392.5,0.00016438,2]
[402486572,1768685448898,-2392.5,0.00016438,2]
[402486573,1768685448905,-907.28,0.00016438,3]
[402486574,1768685448912,-2392.5,0.00016438,2]
[402486575,1768685448919,-2392.5,0.00016438,2]
[402486576,1768685448926,-2392.5,0.00016438,2]
[402486577,1768685448935,-929.32,0.00016438,3]
[402486578,1768685448945,-500.0,0.00016438,3]
[402486579,1768685448955,-2392.5,0.00016438,2]
[402486580,1768685448965,-500.0,0.00016438,3]
[402486581,1768685448974,-2392.5,0.00016438,2]
[402486582,1768685448984,-2392.5,0.00016438,2]
[402486583,1768685448994,-2392.5,0.00016438,2]
[402486584,1768685449004,-423.66716387,0.00016438,3]
[402486585,1768685449016,-2392.5,0.00016438,2]
[402486586,1768685449027,-500.0,0.00016438,3]
[402486587,1768685449038,-2392.5,0.00016438,2]
[402486588,1768685449049,-2392.5,0.00016438,2]
[402486589,1768685449059,-2392.63255502,0.00016438,2]
[402486590,1768685449071,-500.0,0.00016438,3]
[402486591,1768685449080,-1057.38,0.00016438,3]
[402486592,1768685449089,-1212.6,0.00016438,3]
[402486593,1768685449098,-500.0,0.00016438,3]
[402486594,1768685449108,-500.0,0.00016438,3]
[402486595,1768685449118,-679.94,0.00016438,3]
[402486596,1768685449128,-500.0,0.00016438,3]
[402486597,1768685449137,-2319.11,0.00016438,3]
[402486598,1768685449148,-500.0,0.00016438,3]
[402486599,1768685449159,-500.0,0.00016438,3]
[402486600,1768685449168,-1171.28,0.00016438,3]
[402486601,1768685449178,-693.13,0.00016438,3]
[402486602,1768685449188,-500.0,0.00016438,3]
[402486603,1768685449197,-500.0,0.00016438,3]
[402486604,1768685449206,-500.0,0.00016438,3]
[402486605,1768685449216,-500.0,0.00016438,3]
[402486606,1768685449225,-613.24737358,0.00016438,3]
[402486607,1768685449234,-500.0,0.00016438,3]
[402486608,1768685449244,-500.0,0.00016438,3]
[402486609,1768685449253,-500.0,0.00016438,3]
[402486610,1768685449264,-506.28,0.00016438,3]
[402486611,1768685449276,-500.0,0.00016438,3]
[402486612,1768685449286,-563.42,0.00016438,3]
[402486613,1768685449295,-500.0,0.00016438,3]
[402486614,1768685449306,-787.05,0.00016438,3]
[402486615,1768685449315,-523.15,0.00016438,3]
[402486616,1768685449325,-500.0,0.00016438,3]
[402486617,1768685449334,-500.0,0.00016438,3]
[402486618,1768685449346,-500.0,0.00016438,3]
[402486619,1768685449355,-530.03,0.00016438,3]
[402486620,1768685449364,-500.0,0.00016438,3]
[402486621,1768685449373,-500.0,0.00016438,3]
[402486622,1768685449383,-500.0,0.00016438,2]
[402486623,1768685449392,-500.0,0.00016438,3]
[402486624,1768685449401,-500.0,0.00016438,3]
[402486625,1768685449411,-722.65,0.00016438,3]
[402486626,1768685449421,-500.0,0.00016438,3]
[402486627,1768685449430,-500.0,0.00016438,3]
[402486628,1768685449439,-500.0,0.00016438,3]
[402486629,1768685449450,-500.0,0.00016438,2]
[402486630,1768685449459,-729.32,0.00016438,3]
[402486631,1768685449468,-500.0,0.00016438,3]
[402486632,1768685449477,-500.0,0.00016438,3]
[402486633,1768685449487,-595.77,0.00016438,3]
[402486634,1768685449496,-500.0,0.00016438,3]
[402486635,1768685449505,-500.0,0.00016438,3]
[402486636,1768685449514,-500.0,0.00016438,3]
[402486637,1768685449524,-500.0,0.00016438,3]
[402486638,1768685449534,-151.0,0.00016438,2]
[402486639,1768685449543,-500.0,0.00016438,3]
[402486640,1768685449553,-478.32257424,0.00016438,3]
[402486641,1768685449562,-500.0,0.00016438,2]
[402486642,1768685449571,-500.0,0.00016438,3]
[402486643,1768685449581,-1009.69,0.00016438,3]
[402486644,1768685449590,-500.0,0.00016438,3]
[402486645,1768685449599,-500.0,0.00016438,3]
[402486646,1768685449608,-500.0,0.00016438,3]
[402486647,1768685449618,-500.0,0.00016438,3]
[402486648,1768685449627,-500.0,0.00016438,3]
[402486649,1768685449637,-500.0,0.00016438,3]
[402486650,1768685449646,-500.0,0.00016438,3]
[402486651,1768685449656,-500.0,0.00016438,3]
[402486652,1768685449665,-500.0,0.00016438,3]
[402486653,1768685449674,-500.0,0.00016438,3]
[402486654,1768685449683,-500.0,0.00016438,3]
[402486655,1768685449692,-151.0,0.00016438,2]
[402486656,1768685449702,-151.0,0.00016438,2]
[402486657,1768685449711,-151.0,0.00016438,2]
[402486658,1768685449720,-3000.0,0.00016438,2]
[402486659,1768685449729,-639.0,0.00016496,2]
[402486660,1768685449738,-500.0,0.0001656,2]
[402486661,1768685449747,-500.0,0.00016575,3]
[402486662,1768685449757,-10000.0,0.00016612,2]
[402486663,1768685449766,-639.0,0.00016701,2]
[402486664,1768685449775,-500.0,0.00016712,3]
[402486665,1768685449784,-364.52915011,0.00016712,3]
[402486666,1768685449794,-500.0,0.00016712,2]
[402486667,1768685449803,-1094.9599349,0.00016712,2]
[402486668,1768685449812,-500.0,0.00016712,3]
[402486669,1768685449822,-500.0,0.00016712,3]
[402486670,1768685449831,-541.87987257,0.00016712,3]
[402486671,1768685449841,-64806.2725183,0.00016712,2]
[402486672,1768685449853,-500.0,0.00016712,3]
[402486673,1768685449862,-941.42,0.00016712,3]
[402486674,1768685449872,-500.0,0.00016712,3]
[402486675,1768685449881,-500.0,0.00016712,3]
[402486676,1768685449890,-500.0,0.00016712,3]
[402486677,1768685449900,-270.52290684,0.00016712,3]
[402486678,1768685449910,-500.0,0.00016712,3]
[402486679,1768685449920,-500.0,0.00016712,3]
[402486680,1768685449930,-719.13,0.00016712,3]
[402486681,1768685449941,-500.0,0.00016712,3]
[402486682,1768685449950,-500.0,0.00016712,3]
[402486683,1768685449961,-1301.91,0.00016712,3]
[402486684,1768685449971,-500.0,0.00016712,3]
[402486685,1768685449980,-500.0,0.00016712,3]
[402486686,1768685449990,-565.24,0.00016712,3]
[402486687,1768685450000,-500.0,0.00016712,3]
[402486688,1768685450009,-675.35,0.00016712,3]
[402486689,1768685450020,-976.53,0.00016712,3]
[402486690,1768685450031,-590.40738298,0.00016712,3]
[402486691,1768685450041,-500.0,0.00016712,3]
[402486692,1768685450051,-500.0,0.00016712,3]
[402486693,1768685450061,-500.0,0.00016712,3]
[402486694,1768685450072,-500.0,0.00016712,3]
[402486695,1768685450083,-846.47,0.00016712,3]
[402486696,1768685450093,-595.44134723,0.00016712,3]
[402486697,1768685450102,-500.0,0.00016712,3]
[402486698,1768685450113,-500.0,0.00016712,3]
[402486699,1768685450123,-500.0,0.00016712,3]
[402486700,1768685450134,-529.31,0.00016712,3]
[402486701,1768685450143,-500.0,0.00016712,3]
[402486702,1768685450152,-500.0,0.00016712,3]
[402486703,1768685450161,-500.0,0.00016712,3]
[402486704,1768685450171,-500.0,0.00016712,3]
[402486705,1768685450180,-500.0,0.00016712,3]
[402486706,1768685450189,-500.0,0.00016712,3]
[402486707,1768685450198,-748.32,0.00016712,3]
[402486708,1768685450208,-500.0,0.00016712,3]
[402486709,1768685450217,-682.13,0.00016712,3]
[402486710,1768685450227,-563.84,0.00016712,3]
[402486711,1768685450237,-500.0,0.00016712,3]
[402486712,1768685450247,-486.76739107,0.00016712,3]
[402486713,1768685450258,-616.18,0.00016712,3]
[402486714,1768685450273,-500.0,0.00016712,3]
[402486715,1768685450283,-500.0,0.00016712,3]
[402486716,1768685450292,-500.0,0.00016712,3]
[402486717,1768685450302,-500.0,0.00016712,3]
[402486718,1768685450313,-500.0,0.00016712,3]
[402486719,1768685450322,-500.0,0.00016712,3]
[402486720,1768685450331,-1000.0,0.00016712,2]
[402486721,1768685450343,-500.0,0.00016712,3]
[402486722,1768685450352,-500.0,0.00016712,3]
[402486723,1768685450362,-500.0,0.00016712,3]
[402486724,1768685450371,-573.25,0.00016712,3]
[402486725,1768685450381,-500.0,0.00016712,3]
[402486726,1768685450390,-500.0,0.00016712,3]
[402486727,1768685450399,-544.04779014,0.00016712,3]
[402486728,1768685450409,-500.0,0.00016712,3]
[402486729,1768685450418,-500.0,0.00016712,3]
[402486730,1768685450427,-500.0,0.00016712,3]
[402486731,1768685450435,-500.0,0.00016712,3]
[402486732,1768685450444,-297.49810477,0.00016712,3]
[402486733,1768685450454,-500.0,0.00016712,3]
[402486734,1768685450463,-703.83,0.00016712,3]
[402486735,1768685450472,-500.0,0.00016712,3]
[402486736,1768685450481,-500.0,0.00016712,3]
[402486737,1768685450491,-500.0,0.00016712,3]
[402486738,1768685450500,-500.0,0.00016712,3]
[402486739,1768685450509,-500.0,0.00016712,3]
[402486740,1768685450523,-500.0,0.00016712,3]
[402486741,1768685450533,-500.0,0.00016712,3]
[402486742,1768685450542,-1056.96,0.00016712,3]
[402486743,1768685450551,-500.0,0.00016712,3]
[402486744,1768685450560,-561.03,0.00016712,3]
[402486745,1768685450570,-500.0,0.00016712,3]
[402486746,1768685450579,-966.73,0.00016712,3]
[402486747,1768685450588,-500.0,0.00016712,3]
[402486748,1768685450598,-500.0,0.00016712,3]
[402486749,1768685450606,-500.0,0.00016712,3]
[402486750,1768685450616,-500.0,0.00016712,3]
[402486751,1768685450625,-500.0,0.00016712,3]
[402486752,1768685450635,-500.0,0.00016712,3]
[402486753,1768685450644,-500.0,0.00016712,3]
[402486754,1768685450656,-500.0,0.00016712,3]
[402486755,1768685450665,-500.0,0.00016712,3]
[402486756,1768685450675,-500.0,0.00016712,3]
[402486757,1768685450684,-500.0,0.00016712,3]
[402486758,1768685450694,-500.0,0.00016712,3]
[402486759,1768685450703,-231.71584647,0.00016712,3]
[402486760,1768685450713,-500.0,0.00016712,3]
[402486761,1768685450722,-500.0,0.00016712,3]
[402486762,1768685450731,-500.0,0.00016712,3]
[402486763,1768685450740,-500.0,0.00016712,3]
[402486764,1768685450749,-534.36,0.00016712,3]
[402486765,1768685450758,-1130.85,0.00016712,3]
[402486766,1768685450768,-500.0,0.00016712,3]
[402486767,1768685450777,-1133.01,0.00016712,3]
[402486768,1768685450786,-500.0,0.00016712,3]
[402486769,1768685450795,-500.0,0.00016712,3]
[402486770,1768685450805,-500.0,0.00016712,3]
[402486771,1768685450815,-857.58,0.00016712,3]
[402486772,1768685450824,-557.67,0.00016712,3]
[402486773,1768685450833,-500.0,0.00016712,3]
[402486774,1768685450842,-500.0,0.00016712,3]
[402486775,1768685450851,-500.0,0.00016712,3]
[402486776,1768685450861,-500.0,0.00016712,3]
[402486777,1768685450870,-500.0,0.00016712,3]
[402486778,1768685450879,-936.38,0.00016712,3]
[402486779,1768685450888,-500.0,0.00016712,3]
[402486780,1768685450897,-500.0,0.00016712,3]
[402486781,1768685450907,-500.0,0.00016712,3]
[402486782,1768685450916,-500.0,0.00016712,3]
[402486783,1768685450925,-500.0,0.00016712,3]
[402486784,1768685450934,-500.0,0.00016712,3]
[402486785,1768685450943,-500.0,0.00016712,3]
[402486786,1768685450952,-500.0,0.00016712,3]
[402486787,1768685450962,-290.26,0.00016712,2]
[402486788,1768685450972,-500.0,0.00016712,3]
[402486789,1768685450981,-541.79,0.00016712,3]
[402486790,1768685450991,-500.0,0.00016712,3]
[402486791,1768685451000,-500.0,0.00016712,3]
[402486792,1768685451009,-500.0,0.00016712,3]
[402486793,1768685451018,-990.96,0.00016712,3]
[402486794,1768685451029,-500.0,0.00016712,3]
[402486795,1768685451040,-500.0,0.00016712,3]
[402486796,1768685451049,-500.0,0.00016712,3]
[402486797,1768685451060,-611.92,0.00016712,3]
[402486798,1768685451071,-500.0,0.00016712,3]
[402486799,1768685451080,-500.0,0.00016712,3]
[402486800,1768685451089,-500.0,0.00016712,3]
[402486801,1768685451099,-999.25,0.00016712,3]
[402486802,1768685451108,-500.0,0.00016712,3]
[402486803,1768685451118,-543.77,0.00016712,3]
[402486804,1768685451127,-500.0,0.00016712,3]
[402486805,1768685451137,-547.31106992,0.00016712,3]
[402486806,1768685451146,-500.0,0.00016712,3]
[402486807,1768685451155,-748.74,0.00016712,3]
[402486808,1768685451164,-500.0,0.00016712,3]
[402486809,1768685451173,-500.0,0.00016712,3]
[402486810,1768685451183,-500.0,0.00016712,3]
[402486811,1768685451192,-500.0,0.00016712,3]
[402486812,1768685451202,-500.0,0.00016712,3]
[402486813,1768685451211,-500.0,0.00016712,3]
[402486814,1768685451220,-500.0,0.00016712,3]
[402486815,1768685451230,-500.0,0.00016712,3]
[402486816,1768685451240,-500.0,0.00016712,3]
[402486817,1768685451249,-500.0,0.00016712,3]
[402486818,1768685451259,-500.0,0.00016712,3]
[402486819,1768685451273,-500.0,0.00016712,3]
[402486820,1768685451283,-500.0,0.00016712,3]
[402486821,1768685451293,-500.0,0.00016712,3]
[402486822,1768685451302,-671.71,0.00016712,3]
[402486823,1768685451313,-1103.59,0.00016712,3]
[402486824,1768685451322,-500.0,0.00016712,3]
[402486825,1768685451332,-500.0,0.00016712,3]
[402486826,1768685451342,-500.0,0.00016712,3]
[402486827,1768685451351,-500.0,0.00016712,3]
[402486828,1768685451360,-1000.42,0.00016712,3]
[402486829,1768685451369,-500.0,0.00016712,3]
[402486830,1768685451379,-738.45,0.00016712,3]
[402486831,1768685451388,-577.48511526,0.00016712,3]
[402486832,1768685451397,-500.0,0.00016712,3]
[402486833,1768685451406,-1384.99,0.00016712,3]
[402486834,1768685451415,-500.0,0.00016712,3]
[402486835,1768685451424,-500.0,0.00016712,3]
[402486836,1768685451433,-154.82234284,0.00016712,3]
[402486837,1768685451443,-500.0,0.00016712,3]
[402486838,1768685451452,-500.0,0.00016712,3]
[402486839,1768685451461,-500.0,0.00016712,3]
[402486840,1768685451470,-500.0,0.00016712,3]
[402486841,1768685451479,-500.0,0.00016712,3]
[402486842,1768685451489,-584.81708203,0.00016712,3]
[402486843,1768685451499,-500.0,0.00016712,3]
[402486844,1768685451509,-500.0,0.00016712,3]
[402486845,1768685451518,-500.0,0.00016712,3]
[402486846,1768685451528,-551.63,0.00016712,3]
[402486847,1768685451538,-555.17,0.00016712,3]
[402486848,1768685451547,-500.0,0.00016712,3]
[402486849,1768685451556,-1389.61,0.00016712,3]
[402486850,1768685451566,-500.0,0.00016712,3]
[402486851,1768685451575,-609.79,0.00016712,3]
[402486852,1768685451585,-500.0,0.00016712,3]
[402486853,1768685451594,-500.0,0.00016712,3]
[402486854,1768685451605,-500.0,0.00016712,3]
[402486855,1768685451618,-857.53,0.00016712,3]
[402486856,1768685451627,-1279.11,0.00016712,3]
[402486857,1768685451638,-628.7,0.00016712,3]
[402486858,1768685451648,-500.0,0.00016712,3]
[402486859,1768685451657,-640.29,0.00016712,3]
[402486860,1768685451667,-641.81,0.00016712,3]
[402486861,1768685451676,-500.0,0.00016712,3]
[402486862,1768685451686,-1213.37,0.00016712,3]
[402486863,1768685451695,-500.0,0.00016712,3]
[402486864,1768685451706,-500.0,0.00016712,3]
[402486865,1768685451715,-500.0,0.00016712,3]
[402486866,1768685451724,-500.0,0.00016712,3]
[402486867,1768685451734,-1277.68,0.00016712,3]
[402486868,1768685451744,-500.0,0.00016712,3]
[402486869,1768685451753,-500.0,0.00016712,3]
[402486870,1768685451763,-500.0,0.00016712,3]
[402486871,1768685451773,-500.0,0.00016712,3]
[402486872,1768685451783,-500.0,0.00016712,3]
[402486873,1768685451793,-500.0,0.00016712,3]
[402486874,1768685451803,-500.0,0.00016712,3]
[402486875,1768685451812,-500.0,0.00016712,3]
[402486876,1768685451821,-500.0,0.00016712,3]
[402486877,1768685451831,-500.0,0.00016712,3]
[402486878,1768685451840,-500.0,0.00016712,3]
[402486879,1768685451850,-986.32,0.00016712,3]
[402486880,1768685451860,-537.77,0.00016712,3]
[402486881,1768685451870,-500.0,0.00016712,3]
[402486882,1768685451880,-500.0,0.00016712,3]
[402486883,1768685451890,-600.83,0.00016712,3]
[402486884,1768685451900,-656.88,0.00016712,3]
[402486885,1768685451909,-500.0,0.00016712,3]
[402486886,1768685451919,-500.0,0.00016712,3]
[402486887,1768685451929,-500.0,0.00016712,3]
[402486888,1768685451938,-500.0,0.00016712,3]
[402486889,1768685451947,-500.0,0.00016712,3]
[402486890,1768685451957,-500.0,0.00016712,3]
[402486891,1768685451966,-500.0,0.00016712,3]
[402486892,1768685451975,-500.0,0.00016712,3]
[402486893,1768685451985,-616.17,0.00016712,3]
[402486894,1768685451996,-1405.44,0.00016712,3]
[402486895,1768685452006,-500.0,0.00016712,3]
[402486896,1768685452016,-500.0,0.00016712,3]
[402486897,1768685452025,-500.0,0.00016712,3]
[402486898,1768685452035,-500.0,0.00016712,3]
[402486899,1768685452046,-500.0,0.00016712,3]
[402486900,1768685452056,-500.0,0.00016712,3]
[402486901,1768685452066,-500.0,0.00016712,3]
[402486902,1768685452076,-441.88906637,0.00016712,3]
[402486903,1768685452085,-500.0,0.00016712,3]
[402486904,1768685452095,-500.0,0.00016712,3]
[402486905,1768685452105,-500.0,0.00016712,3]
[402486906,1768685452115,-616.98850681,0.00016712,3]
[402486907,1768685452126,-500.0,0.00016712,3]